Cogmind - Beta 15 @@@ ROGUE MODE // 2025.07.31 @ 09:44:38 Player: Zoe Result: Destroyed by G-47 Trooper with Particle Gun Performance ------------- Evolutions (2) 1000 Regions Visited (4) 800 Robots Destroyed (52) 260 Value Destroyed (1284) 1284 Prototype IDs (0) 0 Alien Tech Used (0) 0 Bonus (108) 108 TOTAL SCORE: 3452 Bonus ------- Follower Combat Kills 108 Cogmind --------- Core Integrity 0/550 Matter 245/300 Energy 100/100 System Corruption 0% Temperature Cool (9) Movement Core (350) Ox6 Location -8/Materials Parts ------- > --- POWER (2) -------- (None) > --- PROPULSION (3) --- (None) > --- UTILITY (3) ------ Large Storage Unit Sensor Array > --- WEAPON (3) ------- (None) > --- INVENTORY (15) --- Large Storage Unit Peak State ------------ > --- POWER ------------ Light Nuclear Core Light Nuclear Core > --- PROPULSION ------- Light Treads Advanced Treads Advanced Treads > --- UTILITY ---------- Heat Sink Large Storage Unit Hacking Suite > --- WEAPON ----------- Light EM Pulse Cannon Heavy Battle Rifle Grenade Launcher > --- INVENTORY -------- Ion Engine Light Ion Engine Improved Ion Engine Improved Ion Engine Light Nuclear Core Aluminum Leg Aluminum Leg Large Storage Unit Sensor Array [Rating: 26] Favorites ----------- Power Improved Ion Engine Engine Improved Ion Engine Power Core Light Nuclear Core Propulsion Light Treads Treads Light Treads Leg Aluminum Leg Wheel Wheel Utility Large Storage Unit Device Heat Sink Storage Large Storage Unit Hackware Hacking Suite Weapon Beam Cannon Energy Gun Beam Rifle Energy Cannon Beam Cannon Ballistic Gun Heavy Battle Rifle Ballistic Cannon Improved Light Cannon Launcher Grenade Launcher Build | -11 -10 -10 -9 -8 ------- Run | Yrd Mat Min Mat Mat Slots Evolved 4 | . . . 2 2 Power 1 | . . . . 1 Propulsion 1 | . . . . 1 Utility 1 | . . . 1 . Weapon 1 | . . . 1 . Parts Attached 36 | 9 4 . 6 17 Power 7 | 1 . . 1 5 Engine 4 | 1 . . 1 2 Core 3 | . . . . 3 Reactor . | . . . . . Propulsion 9 | 3 . . . 6 Treads 6 | 2 . . . 4 Leg 2 | . . . . 2 Wheel 1 | 1 . . . . Hover . | . . . . . Flight . | . . . . . Utility 7 | 2 2 . 3 . Device 4 | 1 1 . 2 . Storage 2 | 1 1 . . . Processor . | . . . . . Hackware 1 | . . . 1 . Protection . | . . . . . Artifact . | . . . . . Weapon 13 | 3 2 . 2 6 Energy Gun 4 | 2 . . 1 1 Energy Cannon 4 | . 2 . . 2 Ballistic Gun 2 | 1 . . 1 . Ballistic Cannon 2 | . . . . 2 Launcher 1 | . . . . 1 Special Weapon . | . . . . . Impact Weapon . | . . . . . Slashing Weapon . | . . . . . Piercing Weapon . | . . . . . Special Melee Weapon . | . . . . . Unidentified Prototypes . | . . . . . Parts Lost 28 | . . . 1 27 Power 7 | . . . . 7 Propulsion 8 | . . . . 8 Utility 3 | . . . . 3 Weapon 10 | . . . 1 9 Highest Loss Streak 20 | . . . 1 20 To Critical Strikes . | . . . . . Average Backups 10 | 4 7 8 12 11 Power 2 | 1 1 1 2 3 Propulsion 2 | 2 2 2 2 2 Utility 1 | . . 2 2 2 Weapon 3 | . 2 3 4 3 Tool/Special . | . . . . . Unused Backups 3 | . 2 . . 1 Power . | . . . . . Propulsion 2 | . 2 . . . Utility 1 | . . . . 1 Weapon . | . . . . . Tool/Special . | . . . . . Average Slot Usage (%) 96 | . 100 100 99 89 Engine 12 | . 14 14 11 12 Core 1 | . . . . 4 Treads 23 | . 28 28 22 21 Device 10 | . 14 14 11 8 Storage 11 | . 14 14 11 9 Hackware 6 | . . . 10 8 Energy Gun 5 | . 5 . 1 11 Energy Cannon 17 | . 17 28 20 8 Ballistic Gun 4 | . 5 . 11 . Peak Build Rating 26 | 9 9 8 18 26 Average Rating 14 | 5 8 7 16 18 On Entrance 8 | . 9 7 8 18 Naked Turns . | . . . . . Heaviest Build 46 | 15 32 32 39 46 Greatest Support 64 | 40 40 40 40 64 Greatest Overweight (x) 8 | . . . . 8 Average Overweight (x) . | . . . . . Largest Inventory Capacity 15 | 8 15 15 15 15 Average Capacity 13 | 7 8 15 15 15 Most Carried 15 | 6 8 9 15 15 Average Carried 10 | 4 7 8 12 11 Final Capacity 15 | 8 15 15 15 15 Final Carried 14 | 6 8 9 14 1 Class Distribution -------------------- 51% | Gunner 40% | Mutant 8% | Skirmisher Dominant Class ---------------- Mutant | -10/Materials Mutant | -10/Mines Gunner | -9/Materials Gunner | -8/Materials Resources | -11 -10 -10 -9 -8 ----------- Run | Yrd Mat Min Mat Mat Matter Collected 1120 | 332 30 10 172 576 Remotely . | . . . . . Salvage Created 1746 | 166 35 97 698 750 Parts 99 | 9 2 5 44 39 Haulers Intercepted 2 | . . . 1 1 Recyclers Shooed 1 | 1 . . . . Parts Field Recycled . | . . . . . Retrieved Matter . | . . . . . Parts Self-Destructed . | . . . . . Prevented . | . . . . . Kills | -11 -10 -10 -9 -8 ------- Run | Yrd Mat Min Mat Mat Combat Hostiles Destroyed 33 | . 1 3 15 14 Guns 11 | . . . 7 4 Cannons 22 | . 1 3 8 10 Classes Destroyed 13 | 2 1 1 5 4 Worker 4 | . . . 2 2 Builder 5 | . . . 1 4 Tunneler 3 | 3 . . . . Hauler 2 | . . . 1 1 Recycler 1 | 1 . . . . Mechanic 1 | . . . . 1 Operator 1 | . . . . 1 Watcher 2 | . . . 1 1 Swarmer 8 | . . 1 3 4 Grunt 19 | . 1 2 10 6 Brawler 1 | . . . . 1 Sentry 4 | . . . 2 2 Hunter 1 | . . . . 1 Best Kill Streak 10 | 2 1 2 10 4 Combat Bots Only 7 | . 1 2 7 4 Max Kills in Single Turn 2 | 2 1 1 2 2 Gunslinging . | . . . . . Exploded . | . . . . . Melee . | . . . . . Uniques/NPCs Destroyed . | . . . . . Combat | -11 -10 -10 -9 -8 -------- Run | Yrd Mat Min Mat Mat Hostile Shots Fired 329 | . 4 19 66 240 Missed 74 | . 1 7 21 45 Hits 255 | . 3 12 45 195 Melee 9 | . . . . 9 Projectile 246 | . 3 12 45 186 Critical Strikes 7 | . . . . 7 Damage Taken 3432 | 23 35 140 479 2755 Core 650 | . 12 11 74 553 Absorbed by Shields . | . . . . . Core Remaining (%) 90 | 100 . 90 81 . Volleys Fired 130 | 14 3 8 39 66 Largest 3 | 2 2 2 3 3 Hottest 172 | 60 120 120 153 172 Shots Fired 323 | 28 6 16 106 167 Gun 142 | 28 . . 39 75 Cannon 177 | . 6 16 67 88 Launcher 4 | . . . . 4 Special . | . . . . . Kinetic 79 | 14 . . 39 26 Thermal 190 | . 6 16 67 101 Explosive 4 | . . . . 4 Electromagnetic 50 | 14 . . . 36 Robot Hit Streak 10 | 8 4 4 10 10 Robot Miss Streak 7 | 1 1 2 7 4 Penetration Max . | . . . . . Secondary Targets . | . . . . . Shots Hit Robots 193 | 22 4 9 54 104 Core Hits 78 | 5 1 4 24 44 Critical Kills . | . . . . . Critical Parts Destroyed . | . . . . . Critical Strikes 6 | . . . . 6 Burn 3 | . . . . 3 Blast 3 | . . . . 3 Melee Attacks . | . . . . . Impact . | . . . . . Slashing . | . . . . . Piercing . | . . . . . Sneak Attacks . | . . . . . Combat Hostiles . | . . . . . Follow-up Attacks . | . . . . . Damage Inflicted 4051 | 372 70 157 1127 2325 Guns 1516 | 302 . . 476 738 Cannons 2088 | . 70 157 651 1210 Explosions 447 | 70 . . . 377 Melee . | . . . . . Ramming . | . . . . . Kinetic 954 | 144 . . 476 334 Thermal 2098 | 70 70 157 651 1150 Explosive 237 | . . . . 237 Electromagnetic 762 | 158 . . . 604 Impact . | . . . . . Slashing . | . . . . . Piercing . | . . . . . Highest Corruption . | . . . . . Average Corruption . | . . . . . Corruption Purged . | . . . . . Corruption Blocked . | . . . . . Overload Shots . | . . . . . Overflow Damage 36 | . . . . 36 Projectiles 5 | . . . . 5 Explosions 31 | . . . . 31 Melee . | . . . . . Knockbacks 3 | . . . . 3 Impact . | . . . . . Kinetic 3 | . . . . 3 Secondary . | . . . . . Self-Inflicted Damage 128 | 23 . . . 105 Shots 5 | 1 . . . 4 Rammed 1 | . . . . 1 Targets Rammed 1 | . . . . 1 Kicked . | . . . . . Crushed . | . . . . . Highest Temperature 569 | 12 108 183 154 569 Average Temperature 166 | 12 59 72 60 209 Received Heat Transfer 1197 | . 18 63 180 936 Effects 36 | . . . . 36 Shutdowns 10 | . . . . 10 Energy Bleed 6 | . . . . 6 Interference 6 | . . . . 6 Matter Decay 10 | . . . . 10 Short Circuit 1 | . . . . 1 Damage (major) 3 | . . . . 3 Siege Activations . | . . . . . Martial Activations . | . . . . . Shielding Activations . | . . . . . Robots Disrupted . | . . . . . Combat Hostiles . | . . . . . Robots Corrupted . | . . . . . Combat Hostiles . | . . . . . Parts Fried 1 | 1 . . . . Impact Corruptions . | . . . . . Robots Melted . | . . . . . Combat Hostiles . | . . . . . Parts Melted 11 | . 1 1 1 8 Heat Transferred 4764 | 100 148 333 1369 2814 Parts Sabotaged . | . . . . . Parts Stolen . | . . . . . Parts Stripped . | . . . . . Power Chain Reactions 3 | 1 . . . 2 Alert | -11 -10 -10 -9 -8 ------- Run | Yrd Mat Min Mat Mat Maximum Alert Level 1 | . . . 1 . Low Security (%) 95 | 100 100 100 86 100 Level 1 4 | . . . 13 . Level 2 . | . . . . . Level 3 . | . . . . . Level 4 . | . . . . . Level 5 . | . . . . . High Security . | . . . . . Max Security . | . . . . . Peak Influence 329 | 10 31 50 329 161 Initial 131 | . . 4 3 131 Average 55 | 1 3 13 67 92 Influence Increases 1226 | 20 46 100 601 459 Destroy 0b10 Robot/C 740 | . 20 60 380 280 Destroy 0b10 Robot/NC 110 | 20 . . 40 50 Destroy Leader 152 | . 10 10 78 54 Allied During Kill 26 | . . . 26 . Successful Hack 44 | . . . 40 4 Disable Machine 60 | . . . 30 30 Destroy Structure 49 | . 1 . 7 41 Lose Combat Pursuer 45 | . 15 30 . . Influence Decreases 1226 | 20 35 101 300 770 Entered New Map 194 | . . 7 7 180 Time Decay 754 | 20 35 94 243 362 Lost Part 238 | . . . 10 228 Lost Ally 40 | . . . 40 . Squads Dispatched 2 | . 1 . 1 . Investigation 2 | . 1 . 1 . Extermination . | . . . . . Reinforcement . | . . . . . Assault . | . . . . . Garrison . | . . . . . Intercept . | . . . . . Searches Triggered . | . . . . . Construction Impeded . | . . . . . Haulers Reinforced . | . . . . . Active Scanning Responses . | . . . . . Cargo Convoy Interrupts . | . . . . . Stealth | -11 -10 -10 -9 -8 --------- Run | Yrd Mat Min Mat Mat Distress Signals 7 | . 1 1 3 2 Communications Jammed . | . . . . . Distress Signals . | . . . . . Times Spotted 76 | . 3 9 28 36 Peak Tracking Total 20 | . 2 20 7 7 Tactical Retreats 3 | . 1 2 . . Traps | -11 -10 -10 -9 -8 ------- Run | Yrd Mat Min Mat Mat Traps Triggered 1 | . 1 . . . Indirectly . | . . . . . Trap Hack Attempts . | . . . . . Triggered . | . . . . . Disarmed . | . . . . . Reprogrammed . | . . . . . Reused . | . . . . . Traps Extracted . | . . . . . Installed . | . . . . . Triggered . | . . . . . Machines | -11 -10 -10 -9 -8 ---------- Run | Yrd Mat Min Mat Mat Machines Disabled 4 | . . . 2 2 Max in Single Turn 1 | . . . 1 1 Machines Repaired . | . . . . . Machines Dismantled . | . . . . . Machines Sabotaged . | . . . . . Overloaded Fab Kills . | . . . . . Hacking | -11 -10 -10 -9 -8 --------- Run | Yrd Mat Min Mat Mat Machines Accessed 9 | . 2 . 6 1 Terminals 9 | . 2 . 6 1 Fabricators . | . . . . . Repair Stations . | . . . . . Recycling Units . | . . . . . Scanalyzers . | . . . . . Garrison Access . | . . . . . Total Hacks 24 | . 6 . 16 2 Successful 17 | . 2 . 13 2 Failed 7 | . 4 . 3 . Catastrophic 1 | . . . 1 . Database Lockouts . | . . . . . Manual 22 | . 6 . 14 2 Terminals 24 | . 6 . 16 2 Fabricators . | . . . . . Repair Stations . | . . . . . Recycling Units . | . . . . . Scanalyzers . | . . . . . Garrison Access . | . . . . . Terminal Hacks 8 | . . . 7 1 Branch Access Points 1 | . . . 1 . Zone Layout 7 | . . . 6 1 Fabricator Hacks . | . . . . . Repair Station Hacks . | . . . . . Recycling Unit Hacks . | . . . . . Scanalyzer . | . . . . . Garrison Access Hacks . | . . . . . Unauthorized Hacks 9 | . 2 . 6 1 Terminals 9 | . 2 . 6 1 Track 9 | . 2 . 6 1 Fabricators . | . . . . . Repair Stations . | . . . . . Recycling Units . | . . . . . Scanalyzers . | . . . . . Garrison Access . | . . . . . Data Cores Recovered 2 | . . . 1 1 Used 2 | . . . 1 1 Hacking Detections 5 | . 1 . 4 . Full Trace Events 1 | . . . 1 . Feedback Events . | . . . . . Feedback Blocked . | . . . . . Robot Schematics Acquired . | . . . . . Robots Built . | . . . . . Authchips . | . . . . . Time . | . . . . . Total Robot Build Rating . | . . . . . Part Schematics Acquired . | . . . . . Parts Built . | . . . . . Authchips . | . . . . . Time . | . . . . . Total Part Build Rating . | . . . . . Parts Repaired . | . . . . . Time . | . . . . . Parts Recycled . | . . . . . Recycled Matter . | . . . . . Retrieved Matter . | . . . . . Retrieved Components . | . . . . . Parts Scanalyzed . | . . . . . Part Schematics Acquired . | . . . . . Parts Damaged . | . . . . . Bothacking | -11 -10 -10 -9 -8 ------------ Run | Yrd Mat Min Mat Mat Used RIF Installer . | . . . . . Robots Hacked . | . . . . . Non-combat . | . . . . . Combat . | . . . . . Robot Hacks Applied . | . . . . . Relay Couplers Released . | . . . . . Fabnet Peak Effective % . | . . . . . Robots Rewired . | . . . . . Allies Hacked . | . . . . . Hacks Repelled . | . . . . . Allies | -11 -10 -10 -9 -8 -------- Run | Yrd Mat Min Mat Mat Total Allies 2 | . . 2 . . Largest Group 2 | . . 2 2 . Highest-Rated Group 52 | . . 52 52 . Highest-Rated Ally 31 | . . 31 31 . Total Orders . | . . . . . Ally Attacks 24 | . . . 24 . Total Damage 291 | . . . 291 . Kills 7 | . . . 7 . Allies Corrupted . | . . . . . Allies Melted . | . . . . . Intel | -11 -10 -10 -9 -8 ------- Run | Yrd Mat Min Mat Mat Active Infowar (turns) 373 | 28 106 . 8 231 Sensors 239 | . . . 8 231 Terrain 134 | 28 106 . . . Robot Analysis Total . | . . . . . Derelict Logs Recovered 1 | . . 1 . . Drone Launches . | . . . . . Drone Recoveries . | . . . . . Exploration | -11 -10 -10 -9 -8 ------------- Run | Yrd Mat Min Mat Mat Turns Passed 2591 | 160 359 365 865 842 Spaces Moved 1094 | 69 136 211 428 250 Core 19 | 15 . . . 4 Treads 1070 | 54 136 211 428 241 Legs 5 | . . . . 5 Wheels . | . . . . . Hover . | . . . . . Flight . | . . . . . Fastest Speed 50 | 50 160 160 160 150 Average Speed 162 | 136 160 160 160 176 Slowest Speed 450 | 160 160 160 160 450 Overloaded Moves . | . . . . . Propulsion Burnouts . | . . . . . Robots Hopped . | . . . . . Potential Cave-ins . | . . . . . Cave-ins Triggered . | . . . . . Exploration Rate (%) 32 | 7 24 52 44 33 Regions Visited 4 Branch Regions 1 Pre-discovered Areas 1 | . . 1 . . Known Exits Taken . | . . . . . Unknown Exits Taken 4 | 1 1 1 1 . Scrap Searched . | . . . . . Spaces Dug . | . . . . . Terrain Destroyed 50 | 3 . . 5 42 Melee . | . . . . . Projectile 7 | . . . 5 2 AOE 43 | 3 . . . 40 Terrain Rammed . | . . . . . Walls Destroyed . | . . . . . Machines Disabled . | . . . . . Actions | -11 -10 -10 -9 -8 --------- Run | Yrd Mat Min Mat Mat Total 1637 | 105 272 223 523 514 Wait 327 | 4 118 4 39 162 Move 1090 | 68 135 210 427 250 Hop . | . . . . . Pick Up 34 | 9 7 1 10 7 Fast Attach 5 | 5 . . . . Attach 27 | 3 . . 3 21 Detach 1 | . . . . 1 Swap 14 | 1 4 . 3 6 Drop 8 | 1 5 . 2 . Fire 130 | 14 3 8 39 66 Melee . | . . . . . Ram 1 | . . . . 1 Kick . | . . . . . Crush . | . . . . . Escape Stasis . | . . . . . Rewire . | . . . . . Trap . | . . . . . Miscellaneous . | . . . . . Route ------- -11/Scrapyard -10/Materials -10/Mines -9/Materials (discovered 3 exits: *Mat / Min / *Sto) -8/Materials History --------- Turn | Location | Event 15 | -11/Scrapyard | Discovered new exit (range 16) 161 | -11/Scrapyard | Entered Materials 313 | -10/Materials | Build established: Mutant 454 | -10/Materials | Discovered new exit (range 7) 520 | -10/Materials | Entered Mines 581 | -10/Mines | Met a Derelict bent on vengeance 643 | -10/Mines | Assembled infested the area 648 | -10/Mines | Assisted by a Guerilla fighting off Assembled 679 | -10/Mines | Found a hidden stash of uninstalled traps 730 | -10/Mines | A weapon hastily lodged in a ceiling crevice suddenly fell to the ground 842 | -10/Mines | Discovered new exit (range 8) 871 | -10/Mines | Learned location of Storage (-9) 885 | -10/Mines | Entered Materials 885 | -9/Materials | Accompanied by 2 allies 885 | -9/Materials | Evolved 2 slots: Utility x1, Weapon x1 890 | -9/Materials | Led the pair of lost Derelicts to an unsafe place 1184 | -9/Materials | Build established: Gunner 1612 | -9/Materials | Discovered new exit (range 8) 1612 | -9/Materials | Identified exit to Mines 1612 | -9/Materials | Identified exit to Storage 1702 | -9/Materials | Destroyed 7 combat bots 1726 | -9/Materials | Discovered new exit (range 17) 1750 | -9/Materials | Entered another Materials area 1750 | -8/Materials | Evolved 2 slots: Power x1, Propulsion x1 2378 | -8/Materials | Lost 4 parts (1n3w) 2559 | -8/Materials | Core integrity fell below 50% 2586 | -8/Materials | Core integrity fell below 20% 2592 | -8/Materials | Destroyed by G-47 Trooper with Particle Gun Last Messages --------------- U-05 Engineer lays Concrete. U-05 Engineer builds a Wall. U-05 Engineer lays Concrete. Adv. Treads destroyed. U-05 Engineer builds a Wall. Slammed into S-10 Pest. U-05 Engineer lays Concrete. Heat Sink destroyed. S-10 Pest destroyed. U-05 Engineer builds a Wall. Critical hit (Burn: +37). Ion Engine destroyed. Assault Cannon destroyed. Aluminum Leg destroyed. Lgt. Ion Engine destroyed. Imp. Ion Engine destroyed. Hacking Suite destroyed. Imp. Ion Engine destroyed. Aluminum Leg destroyed. Acquired 55 matter. Map ----- +----------------------------------------------------+ | ?????????????????????????????????????????????????? | | ?????????????????????????????????????????????????? | | ?????????????????????????????????????????????????? | | ?????????????????????????????????????????????????? | | ?????????????????????????????????????????????????? | | ?????????????????????????????????????????????????? | | ?????????????????????????????????????????????????? | | ?????????????????????????????????????????????????? | | ?????????????????????????????????????????????????? | | ?????????????????????????????????????????????????? | | ?????????????????????????????? ????????????????? | | ?????????????????????????????? ????????? | | ?????????????????????????????? ???????? | | ?????????????????????????????+? #???????? | | ?????????????????????????????# #?????### | | ?????????????????????????????# "?????# | | ?????????????????????????????# !!! ""????# | | ?????????????????????????????# !!! T"#???# | | ?????????????????????????????# * !! ""????# | | ?????????????????????????????# "?????# | | ?????????????????????????????# #?????# | | ?????????????????????????????# #?????# | | ?????????????????????????????# #?????# | | ?????????? ############### r """ #?##??# | | ?????????? s g """ ######### | | ?????????? @ l g """ | | ????????????????############# gs u = | | ?????????????##########?????# % kk !% | | ?????????????# #?????# ###############! | | ?????????????# ############# ### | | ?????????????# """ # = | | ?????????????# """"" + = T | | ?????????????# """"" # ]! | | ?????????????# """"" # ################# = # | | ?????????????# """ # #??????????### ## ##+### | | ?????????????# # #???????? =### ? | | ?????????????# #?#?????? ??# | | ?????????????#+#####+## #??????? ???# | | ????########## ##### * #?????? """"????# | | ????# = # !%= #?????? """"????+ | | ????# # =%!#?????????????????# | | ????# = !+= % """* #?????????????????# | | ????# * #% " "R" ????????????????# | | ????# %=# "" " " ????????????????# | | ????# # "" ???????????????######## | | ????######## "" ??????????????????????? | | ???????????# """ !! ??????????????????????? | | ???????????#! """ ! ?????????????????????? | | ???????????# """ ?????????????????????? | | ???????????# " ????????????????????? | +----------------------------------------------------+ Best States ------------- Heat Dissipation 53 Energy Generation 23 Energy Capacity 430 Matter Stores 300 Matter Capacity 300 Sight Range 16 Robot Scan Range 14 Terrain Scan Range 16 Terrain Scan Density 10 Evasion (%) 50 Recoil Reduction 3 Offensive Hacking 10 Item Schematics ----------------- None Robot Schematics ------------------ None Fabricated ------------ Nothing Repaired ---------- Nothing Alien Tech Used ----------------- None Achievements -------------- Hunted Slippery One Challenges ------------ None Game ------ Seed PlatingReflectiveSpoofer Manual? 0 Play Time 00:27:52 Cumulative 20.9 hours Start 2025.07.31 @ 09:14:57 End 2025.07.31 @ 09:44:38 Sessions 3 Manual Loads 0 Difficulty Rogue Special Mode None Game No. 41 Rogue 38 Adventurer 3 Explorer 0 Win Type - Total 0 Types 0/0/0/0/0/0/0/0/0/0 Lore% 14 Gallery% 19 Achievement% 19 Wizard Run 0 Options --------- Layout 1 ASCII 0 Keyboard 0 Movement Mouse Keybinds 0 Fullscreen 1 Font 24/Smallcaps Map View 50x35 Zoom Use 0% Tactical HUD 0 Map Filters NONE Filters NONE Steam 1 RUN: a77fed7f-d0ca-4d87-b384-39989a289ea3